Cogmind - Beta 14 @@@ ROGUE MODE // 2024.09.01 @ 01:09:33 Player: szymekc Result: Destroyed by Y-54 Guardian via exploding Phase Generator Performance ------------- Evolutions (3) 1500 Regions Visited (10) 2000 Robots Destroyed (159) 795 Value Destroyed (6115) 6115 Prototype IDs (32) 640 Alien Tech Used (0) 0 Bonus (1606) 1606 TOTAL SCORE: 12656 Bonus ------- High Alert Combat Kills 1134 Follower Combat Kills 7 Entered Garrisons 600 Aligned with FarCom 300 Friendly Fire -435 Cogmind --------- Core Integrity 0/700 Matter 8/300 Energy 80/100 System Corruption 7% Temperature Cool (0) Movement Core (50) Location -7/Garrison Parts ------- > --- POWER (1) -------- (None) > --- PROPULSION (5) --- (None) > --- UTILITY (5) ------ Experimental Targeting Computer > --- WEAPON (2) ------- (None) > --- INVENTORY (5) ---- Experimental Heat Sink Hardened Medium Armor Plating Improved EM Pulse Cannon Gauss Rifle Makeshift Hammer Peak State ------------ > --- POWER ------------ Cold Fusion Reactor > --- PROPULSION ------- Light Treads Light Treads Light Treads Light Treads Advanced Treads > --- UTILITY ---------- Experimental Heat Sink Huge Storage Unit Experimental Targeting Computer Layered Medium Armor Plating Hardlight Generator > --- WEAPON ----------- Flak Gun Mini Assault Cannon > --- INVENTORY -------- Heavy Deuterium Engine Light Neutrino Core Combat Antigrav System Large Storage Unit High-capacity Matter Pod Gravity Neutralizer Experimental Sensor Array Experimental Core Analyzer Advanced Weapon Cycler Transmission Jammer Improved Utility Shielding Hardened Medium Armor Plating Improved Medium Armor Plating Layered Medium Armor Plating Layered Medium Armor Plating Improved Shield Generator Improved EM Pulse Cannon Improved EM Pulse Cannon Improved EM Pulse Cannon Gauss Rifle 8R-AWN's Boregun 8R-AWN's Boregun Rocket Launcher Makeshift Hammer [Rating: 56] Favorites ----------- Power Cold Fusion Reactor Engine Ion Engine Power Core Light Neutrino Core Reactor Cold Fusion Reactor Propulsion Light Treads Treads Light Treads Leg Aluminum Leg Hover Unit Combat Antigrav System Utility Medium Armor Plating Device Improved Shield Generator Storage Huge Storage Unit Processor Experimental Targeting Computer Hackware System Shield Protection Medium Armor Plating Weapon Flak Gun Energy Gun EM Shotgun Energy Cannon Improved EM Pulse Cannon Ballistic Gun Flak Gun Ballistic Cannon Mini Assault Cannon Launcher Rocket Launcher Impact Weapon Makeshift Hammer Build | -11 -10 -10 -10 -9 -8 -8 -8 -8 -7 -7 ------- Run | Yrd Mat Min Exi Min Mat Gar Mat Gar Fac Gar Slots Evolved 6 | . . . . . 4 . . . 2 . Power . | . . . . . . . . . . . Propulsion 3 | . . . . . 2 . . . 1 . Utility 3 | . . . . . 2 . . . 1 . Weapon . | . . . . . . . . . . . Parts Attached 154 | 2 10 6 23 5 17 22 7 32 6 24 Power 8 | . . . 4 . . . 1 . . 3 Engine 3 | . . . 1 . . . . . . 2 Core 2 | . . . 1 . . . . . . 1 Reactor 3 | . . . 2 . . . 1 . . . Propulsion 22 | 2 . . 3 . 5 2 2 5 2 1 Treads 21 | 2 . . 3 . 5 2 2 5 2 . Leg . | . . . . . . . . . . . Wheel . | . . . . . . . . . . . Hover 1 | . . . . . . . . . . 1 Flight . | . . . . . . . . . . . Utility 37 | . 4 3 7 2 8 2 1 2 3 5 Device 11 | . 1 1 2 1 1 . . 1 2 2 Storage 8 | . 2 2 2 . 1 . . . . 1 Processor 1 | . . . . . 1 . . . . . Hackware 1 | . . . . . . . . . 1 . Protection 16 | . 1 . 3 1 5 2 1 1 . 2 Artifact . | . . . . . . . . . . . Weapon 87 | . 6 3 9 3 4 18 3 25 1 15 Energy Gun 20 | . 4 2 4 1 . 3 1 4 . 1 Energy Cannon 2 | . . . . . . . . . . 2 Ballistic Gun 35 | . . . 5 1 4 7 1 11 . 6 Ballistic Cannon 1 | . . . . . . . . . 1 . Launcher 13 | . . . . 1 . 3 . 5 . 4 Special Weapon . | . . . . . . . . . . . Impact Weapon 16 | . 2 1 . . . 5 1 5 . 2 Slashing Weapon . | . . . . . . . . . . . Piercing Weapon . | . . . . . . . . . . . Special Melee Weapon . | . . . . . . . . . . . Unidentified Prototypes 9 | . . . 6 . 2 . . . 1 . Parts Lost 16 | . . . . 1 . 1 . . . 14 Power 2 | . . . . . . . . . . 2 Propulsion 5 | . . . . . . . . . . 5 Utility 5 | . . . . . . 1 . . . 4 Weapon 4 | . . . . 1 . . . . . 3 Highest Loss Streak 12 | . . . . 1 . 1 . . . 12 To Critical Strikes . | . . . . . . . . . . . Average Slot Usage (%) 97 | . 97 100 95 98 99 99 97 100 97 90 Engine 5 | . 14 14 9 . . . . . . . Reactor 6 | . . . 4 14 9 9 7 9 7 6 Treads 32 | . 28 28 28 28 35 36 36 36 37 34 Device 3 | . 5 13 . . . . . 5 7 8 Storage 11 | . 14 14 13 14 9 9 9 9 7 7 Processor 4 | . . . . . 6 9 9 9 7 7 Protection 10 | . 5 . 10 13 20 17 18 12 7 7 Energy Gun 9 | . 9 27 13 24 2 . 3 2 . 2 Ballistic Gun 11 | . 17 . 14 2 15 12 10 14 13 5 Peak Build Rating 56 | 6 12 12 38 29 42 42 45 48 55 56 Average Rating 31 | 5 9 11 22 24 36 41 42 44 51 50 On Entrance 28 | 6 6 12 12 24 24 42 42 43 48 53 Naked Turns . | . . . . . . . . . . . Heaviest Build 114 | 14 57 52 71 65 114 110 111 112 113 113 Greatest Support 102 | 40 40 40 40 40 82 82 82 82 102 102 Greatest Overweight (x) 1 | . 1 1 1 1 1 1 1 1 1 1 Average Overweight (x) . | . . . . 1 . 1 1 1 1 . Largest Inventory Capacity 25 | 8 20 20 20 20 25 25 25 25 25 25 Average Capacity 20 | 8 15 18 17 20 21 25 25 25 25 24 Most Carried 25 | 8 16 20 20 20 25 25 25 25 25 25 Average Carried 20 | 5 10 18 16 19 20 24 24 24 24 24 Final Capacity 25 | 8 20 20 20 20 25 25 25 25 25 5 Final Carried 25 | 8 16 20 20 19 25 25 25 25 25 5 Class Distribution -------------------- 52% | Mutant 47% | Scavenger-Mutant Dominant Class ---------------- Mutant | -10/Materials Mutant | -10/Mines Mutant | -10/Exiles Mutant | -9/Mines Scavenger-Mutant | -8/Materials Scavenger-Mutant | -8/Garrison Scavenger-Mutant | -8/Materials Scavenger-Mutant | -8/Garrison Scavenger-Mutant | -7/Factory Scavenger-Mutant | -7/Garrison Resources | -11 -10 -10 -10 -9 -8 -8 -8 -8 -7 -7 ----------- Run | Yrd Mat Min Exi Min Mat Gar Mat Gar Fac Gar Matter Collected 4724 | 280 194 60 1542 148 473 565 142 876 102 342 Remotely . | . . . . . . . . . . . Salvage Created 5167 | 158 534 246 648 276 806 741 199 942 195 422 Parts 344 | 14 30 13 93 23 42 48 8 42 5 26 Haulers Intercepted 7 | . 2 . . . 3 . 2 . . . Recyclers Shooed 5 | . 3 . . 1 1 . . . . . Parts Field Recycled . | . . . . . . . . . . . Retrieved Matter . | . . . . . . . . . . . Parts Self-Destructed . | . . . . . . . . . . . Prevented . | . . . . . . . . . . . Kills | -11 -10 -10 -10 -9 -8 -8 -8 -8 -7 -7 ------- Run | Yrd Mat Min Exi Min Mat Gar Mat Gar Fac Gar Combat Hostiles Destroyed 140 | . 10 5 1 10 15 26 3 31 1 38 Guns 78 | . 9 4 1 9 14 13 3 22 1 2 Cannons 3 | . . . . . . . . . . 3 AOE 58 | . 1 1 . 1 . 13 . 9 . 33 Classes Destroyed 19 | 2 4 . 2 1 7 1 . . 1 1 Worker 5 | . 1 1 . 1 2 . . . . . Builder 1 | . . . . . 1 . . . . . Tunneler 5 | 4 . . . . 1 . . . . . Hauler 7 | . 2 . . . 3 . 2 . . . Recycler 6 | 1 1 1 . . . . . . 3 . Mechanic 1 | . . . . . 1 . . . . . Operator 1 | . . . . . . . . . 1 . Turret 1 | . . . 1 . . . . . . . Watcher 2 | . . . . . 1 . . 1 . . Swarmer 35 | . 3 3 . 3 3 7 . 9 . 7 Cutter 3 | . . . . . . . . . . 3 Grunt 53 | . 7 2 . 4 3 13 2 16 . 6 Brawler 1 | . . . . . 1 . . . . . Duelist 3 | . . . . . 1 . . 1 . 1 Sentry 16 | . . . . . 6 2 . 6 1 1 Hunter 4 | . . . . . 1 2 1 . . . Programmer 4 | . . . . . . 2 . 1 . 1 Zionite 8 | . . . 8 . . . . . . . Assembled 22 | . . . . 3 . . . . . 19 Best Kill Streak 19 | 3 4 4 5 3 6 12 2 10 2 19 Combat Bots Only 19 | . 3 3 1 2 3 12 2 10 1 19 Max Kills in Single Turn 7 | 1 2 2 2 2 2 3 1 4 1 7 Gunslinging 1 | . . . . . . . . 1 . . Exploded 7 | . 1 1 . 1 . 3 . 4 . 7 Melee . | . . . . . . . . . . . Uniques/NPCs Destroyed 4 | . . . 4 . . . . . . . EX-DEC (-10/Exiles) EX-HEX (-10/Exiles) EX-BIN (-10/Exiles) 8R-AWN (-10/Exiles) Combat | -11 -10 -10 -10 -9 -8 -8 -8 -8 -7 -7 -------- Run | Yrd Mat Min Exi Min Mat Gar Mat Gar Fac Gar Hostile Shots Fired 607 | . 17 16 10 24 63 57 12 86 27 295 Missed 198 | . 7 7 1 7 16 23 2 27 15 93 Damage Taken 6095 | . 128 156 88 212 721 525 143 939 63 3120 Core 1031 | . 25 39 . 20 93 30 . 99 3 722 Absorbed by Shields 392 | . . . . . . . . 60 28 304 Regen/Repaired (Parts) 320 | . . . . . 82 . 124 . 114 . Core Remaining (%) 75 | 100 . . . 66 . . . 59 . . Volleys Fired 374 | 10 26 11 104 20 47 40 11 65 10 30 Largest 2 | 2 2 2 2 2 2 2 2 2 2 2 Hottest 149 | 40 90 90 90 90 65 110 56 110 76 149 Shots Fired 685 | 20 52 22 206 36 94 66 16 109 20 44 Gun 636 | 20 52 22 206 35 94 57 16 98 18 18 Cannon 13 | . . . . . . . . . 2 11 Launcher 36 | . . . . 1 . 9 . 11 . 15 Special . | . . . . . . . . . . . Kinetic 515 | 20 32 . 198 3 73 51 13 82 20 23 Thermal 5 | . . . . . . . . . . 5 Explosive 36 | . . . . 1 . 9 . 11 . 15 Electromagnetic 129 | . 20 22 8 32 21 6 3 16 . 1 Robot Hit Streak 19 | 10 11 4 10 8 15 18 9 12 19 18 Robot Miss Streak 8 | 2 4 2 7 4 6 6 2 8 6 7 Penetration Max 1 | . . . 1 . . . . . . . Secondary Targets 7 | . 1 . . . 1 1 . 4 . . Max Gunslinging Chain 1 | . 1 . . . 1 1 . 1 . . Shots Hit Robots 476 | 14 37 18 101 31 81 46 17 81 19 31 Core Hits 495 | 5 25 11 39 26 80 79 17 114 24 75 Critical Kills 4 | . . . 4 . . . . . . . Critical Parts Destroyed 17 | . 1 . 14 . . . 2 . . . Critical Strikes 43 | . 1 . 37 . . . 2 2 . 1 Destroy 38 | . 1 . 37 . . . . . . . Blast 1 | . . . . . . . . . . 1 Corrupt 2 | . . . . . . . . 2 . . Smash 2 | . . . . . . . 2 . . . Melee Attacks 42 | . 4 5 . . . 8 5 7 . 13 Impact 42 | . 4 5 . . . 8 5 7 . 13 Slashing . | . . . . . . . . . . . Piercing . | . . . . . . . . . . . Sneak Attacks 2 | . . . . . . . 2 . . . Combat Hostiles . | . . . . . . . . . . . Follow-up Attacks . | . . . . . . . . . . . Damage Inflicted 13476 | 181 661 298 1975 546 1491 1779 524 2520 414 3087 Guns 8030 | 179 540 212 1975 413 1390 890 290 1451 352 338 Cannons 346 | . . . . . . . . . 51 295 Explosions 4782 | . 108 79 . 131 52 889 . 1069 . 2454 Melee 234 | . . . . . . . 234 . . . Ramming 84 | 2 13 7 . 2 49 . . . 11 . Kinetic 6755 | 179 292 . 1894 42 1153 783 246 1227 403 536 Thermal 408 | . 108 79 . 95 52 . . . . 74 Explosive 4448 | . . . . 36 . 889 . 1069 . 2454 Electromagnetic 1547 | . 248 212 81 371 237 107 44 224 . 23 Impact 234 | . . . . . . . 234 . . . Slashing . | . . . . . . . . . . . Piercing . | . . . . . . . . . . . Highest Corruption 7 | . . . . . . . . . . 7 Average Corruption 6 | . . . . . . . . . . 6 Corruption Purged . | . . . . . . . . . . . Corruption Blocked . | . . . . . . . . . . . Effects 13 | . . . . . . . . . . 13 Message Errors 2 | . . . . . . . . . . 2 Matter Fused 4 | . . . . . . . . . . 4 Heat Flow Errors 1 | . . . . . . . . . . 1 Energy Discharges 1 | . . . . . . . . . . 1 Data Loss (minor) 4 | . . . . . . . . . . 4 Weapon Failures 1 | . . . . . . . . . . 1 Overload Shots . | . . . . . . . . . . . Overflow Damage 306 | . . . . . 10 44 151 18 6 77 Projectiles 6 | . . . . . . . . . 6 . Explosions 139 | . . . . . . 44 . 18 . 77 Melee 161 | . . . . . 10 . 151 . . . Knockbacks 3 | . . . . . . . . . . 3 Impact . | . . . . . . . . . . . Kinetic 3 | . . . . . . . . . . 3 Secondary . | . . . . . . . . . . . Self-Inflicted Damage 413 | . . 40 . 33 . 40 . 154 . 146 Shots 12 | . . 1 . 1 . 1 . 4 . 5 Rammed 11 | 1 2 1 . 1 3 . . . 3 . Targets Rammed 12 | 1 2 1 . 1 4 . . . 3 . Kicked . | . . . . . . . . . . . Crushed 1 | . . . . . 1 . . . . . Highest Temperature 234 | . 168 234 99 72 80 60 18 171 1 80 Average Temperature 46 | . 65 88 41 29 36 15 7 46 1 20 Received Heat Transfer 1175 | . 36 60 . 36 189 162 45 410 16 221 Siege Activations . | . . . . . . . . . . . Robots Corrupted 3 | . . . . . 2 . 1 . . . Combat Hostiles 1 | . . . . . 1 . . . . . Parts Fried 7 | . . 1 . . 2 . 1 3 . . Impact Corruptions 3 | . . . . . 1 . 2 . . . Robots Melted . | . . . . . . . . . . . Combat Hostiles . | . . . . . . . . . . . Parts Melted . | . . . . . . . . . . . Heat Transferred 525 | . 150 . . 150 50 . . . . 175 Parts Sabotaged . | . . . . . . . . . . . Parts Stolen . | . . . . . . . . . . . Parts Stripped . | . . . . . . . . . . . Power Chain Reactions 4 | . 1 1 . 1 1 . . . . . Alert | -11 -10 -10 -10 -9 -8 -8 -8 -8 -7 -7 ------- Run | Yrd Mat Min Exi Min Mat Gar Mat Gar Fac Gar Peak Influence 1859 | 25 207 86 . 135 244 997 634 1859 975 906 Initial 975 | . 16 6 . . 37 160 485 414 975 387 Average 548 | 15 88 19 . 40 114 673 559 1230 835 628 Maximum Alert Level 5 | . 1 . . . 1 3 2 5 3 3 Low Security (%) 41 | 100 98 100 . 100 81 4 . . . . Level 1 4 | . 1 . . . 18 13 . . . 3 Level 2 16 | . . . . . . 19 100 12 23 77 Level 3 22 | . . . . . . 62 . 21 76 19 Level 4 12 | . . . . . . . . 51 . . Level 5 3 | . . . . . . . . 14 . . High Security . | . . . . . . . . . . . Max Security . | . . . . . . . . . . . Squads Dispatched 10 | . 2 . . 1 4 . 1 . 2 . Investigation 4 | . 2 . . . 2 . . . . . Extermination 1 | . . . . . . . . . 1 . Reinforcement 1 | . . . . 1 . . . . . . Assault 1 | . . . . . . . . . 1 . Garrison 3 | . . . . . 2 . 1 . . . Intercept . | . . . . . . . . . . . Searches Triggered . | . . . . . . . . . . . Construction Impeded 1 | . . . . 1 . . . . . . Haulers Reinforced . | . . . . . . . . . . . Active Scanning Responses . | . . . . . . . . . . . Cargo Convoy Interrupts . | . . . . . . . . . . . Stealth | -11 -10 -10 -10 -9 -8 -8 -8 -8 -7 -7 --------- Run | Yrd Mat Min Exi Min Mat Gar Mat Gar Fac Gar Distress Signals 2 | . 1 . . . . . . 1 . . Communications Jammed . | . . . . . . . . . . . Distress Signals . | . . . . . . . . . . . Times Spotted 201 | . 11 6 12 16 20 23 6 31 3 73 Peak Tracking Total 35 | . 3 3 9 3 4 6 2 6 2 35 Tactical Retreats 9 | . 1 . 1 2 . 1 . 2 . 2 Traps | -11 -10 -10 -10 -9 -8 -8 -8 -8 -7 -7 ------- Run | Yrd Mat Min Exi Min Mat Gar Mat Gar Fac Gar Traps Triggered 13 | . 2 . . . 1 9 . 1 . . Indirectly . | . . . . . . . . . . . Trap Hack Attempts . | . . . . . . . . . . . Triggered . | . . . . . . . . . . . Disarmed . | . . . . . . . . . . . Reprogrammed . | . . . . . . . . . . . Reused 4 | . . . 4 . . . . . . . Traps Extracted . | . . . . . . . . . . . Installed 4 | . . . 4 . . . . . . . Triggered 1 | . . . . . 1 . . . . . Most Traps Carried 4 | . . 4 4 . . . . . . . Machines | -11 -10 -10 -10 -9 -8 -8 -8 -8 -7 -7 ---------- Run | Yrd Mat Min Exi Min Mat Gar Mat Gar Fac Gar Machines Disabled 34 | . . . 21 . . 3 . 9 . 1 Max in Single Turn 3 | . . . 3 . . 1 . 2 . 1 Garrison Relay 6 | . . . . . . 1 . 4 . 1 Phase Generator 2 | . . . . . . . . 1 . 1 Machines Repaired . | . . . . . . . . . . . Machines Dismantled . | . . . . . . . . . . . Machines Sabotaged . | . . . . . . . . . . . Overloaded Fab Kills . | . . . . . . . . . . . Hacking | -11 -10 -10 -10 -9 -8 -8 -8 -8 -7 -7 --------- Run | Yrd Mat Min Exi Min Mat Gar Mat Gar Fac Gar Machines Accessed 29 | . 6 . 3 . 5 3 3 2 6 1 Terminals 18 | . 5 . . . 2 3 1 2 4 1 Fabricators . | . . . . . . . . . . . Repair Stations 3 | . . . . . 1 . 1 . 1 . Recycling Units 1 | . 1 . . . . . . . . . Scanalyzers 1 | . . . . . 1 . . . . . Garrison Access 3 | . . . . . 1 . 1 . 1 . Total Hacks 96 | . 18 . 33 . 20 6 7 2 9 1 Successful 73 | . 12 . 33 . 14 2 5 1 5 1 Failed 23 | . 6 . . . 6 4 2 1 4 . Catastrophic 5 | . . . . . . 1 . 1 3 . Database Lockouts . | . . . . . . . . . . . Manual 26 | . 13 . 1 . 5 1 2 1 3 . Terminals 43 | . 15 . . . 9 6 4 2 6 1 Fabricators . | . . . . . . . . . . . Repair Stations 7 | . . . . . 3 . 2 . 2 . Recycling Units 3 | . 3 . . . . . . . . . Scanalyzers 7 | . . . . . 7 . . . . . Garrison Access 3 | . . . . . 1 . 1 . 1 . Terminal Hacks 46 | . 5 . 33 . 2 2 1 1 1 1 Record 32 | . . . 32 . . . . . . . Robot Analysis 1 | . 1 . . . . . . . . . Open Door 1 | . . . . . . . . . . 1 Terminal Index 1 | . 1 . . . . . . . . . Unreport Threat 2 | . . . . . 1 . . . 1 . Locate Traps 2 | . 1 . . . . . 1 . . . Patrol Status 1 | . 1 . . . . . . . . . Hauler Manifests 1 | . . . . . 1 . . . . . Zone Layout 1 | . 1 . . . . . . . . . Garrison Registry 2 | . . . . . . 1 . 1 . . Security Stations 1 | . . . . . . 1 . . . . Derelict Proto ID Bank 1 | . . . 1 . . . . . . . Fabricator Hacks . | . . . . . . . . . . . Repair Station Hacks 6 | . . . . . 2 . 2 . 2 . Scan Component 3 | . . . . . 1 . 1 . 1 . Repair 3 | . . . . . 1 . 1 . 1 . Recycling Unit Hacks . | . . . . . . . . . . . Scanalyzer 6 | . . . . . 6 . . . . . Insert Component 2 | . . . . . 2 . . . . . Analyze 4 | . . . . . 4 . . . . . Garrison Access Hacks 3 | . . . . . 1 . 1 . 1 . Unlock Access 3 | . . . . . 1 . 1 . 1 . Unauthorized Hacks 12 | . 7 . . . 3 . 1 . 1 . Terminals 11 | . 6 . . . 3 . 1 . 1 . Botnet 3 | . 1 . . . 1 . . . 1 . Operators 1 | . 1 . . . . . . . . . Skim 7 | . 4 . . . 2 . 1 . . . Fabricators . | . . . . . . . . . . . Repair Stations . | . . . . . . . . . . . Recycling Units 1 | . 1 . . . . . . . . . Tunnel 1 | . 1 . . . . . . . . . Scanalyzers . | . . . . . . . . . . . Garrison Access . | . . . . . . . . . . . Data Cores Recovered . | . . . . . . . . . . . Used . | . . . . . . . . . . . Hacking Detections 20 | . 6 . . . 4 2 2 2 4 . Full Trace Events . | . . . . . . . . . . . Feedback Events . | . . . . . . . . . . . Feedback Blocked . | . . . . . . . . . . . Robot Schematics Acquired . | . . . . . . . . . . . Robots Built . | . . . . . . . . . . . Authchips . | . . . . . . . . . . . Time . | . . . . . . . . . . . Total Robot Build Rating . | . . . . . . . . . . . Part Schematics Acquired 1 | . . . . . 1 . . . . . Parts Built . | . . . . . . . . . . . Authchips . | . . . . . . . . . . . Time . | . . . . . . . . . . . Total Part Build Rating . | . . . . . . . . . . . Parts Repaired 3 | . . . . . 1 . 1 . 1 . Time 213 | . . . . . 95 . 80 . 38 . Parts Recycled . | . . . . . . . . . . . Recycled Matter . | . . . . . . . . . . . Retrieved Matter . | . . . . . . . . . . . Retrieved Components . | . . . . . . . . . . . Parts Scanalyzed 2 | . . . . . 2 . . . . . Part Schematics Acquired 1 | . . . . . 1 . . . . . Parts Damaged 1 | . . . . . 1 . . . . . Bothacking | -11 -10 -10 -10 -9 -8 -8 -8 -8 -7 -7 ------------ Run | Yrd Mat Min Exi Min Mat Gar Mat Gar Fac Gar Used RIF Installer . | . . . . . . . . . . . Robots Hacked . | . . . . . . . . . . . Non-combat . | . . . . . . . . . . . Combat . | . . . . . . . . . . . Robot Hacks Applied . | . . . . . . . . . . . Relay Couplers Released 25 | . . . . . . 3 . 19 . 3 Machine Destruction 21 | . . . . . . 3 . 15 . 3 Programmers 4 | . . . . . . . . 4 . . Fabnet Peak Effective % . | . . . . . . . . . . . Robots Rewired 6 | . . . . . . . . 6 . . Allies Hacked 1 | . . . . . . . . . . 1 Hacks Repelled . | . . . . . . . . . . . Allies | -11 -10 -10 -10 -9 -8 -8 -8 -8 -7 -7 -------- Run | Yrd Mat Min Exi Min Mat Gar Mat Gar Fac Gar Total Allies 12 | . . 5 . . . . . 6 . 1 Largest Group 6 | . . 5 5 . . . . 6 . 1 Highest-Rated Group 83 | . . 83 83 . . . . 30 . 25 Highest-Rated Ally 31 | . . 31 31 . . . . 5 . 25 Total Orders 1 | . . . 1 . . . . . . . STAY 1 | . . . 1 . . . . . . . Ally Attacks 32 | . . 1 6 . . . . 25 . . Total Damage 233 | . . 11 91 . . . . 131 . . Kills 1 | . . . . . . . . 1 . . Allies Corrupted . | . . . . . . . . . . . Allies Melted . | . . . . . . . . . . . Intel | -11 -10 -10 -10 -9 -8 -8 -8 -8 -7 -7 ------- Run | Yrd Mat Min Exi Min Mat Gar Mat Gar Fac Gar Robot Analysis Total 1 | . 1 . . . . . . . . . Derelict Logs Recovered 2 | . . 1 . 1 . . . . . . Drone Launches . | . . . . . . . . . . . Drone Recoveries . | . . . . . . . . . . . Exploration | -11 -10 -10 -10 -9 -8 -8 -8 -8 -7 -7 ------------- Run | Yrd Mat Min Exi Min Mat Gar Mat Gar Fac Gar Turns Passed 12493 | 102 818 1434 3413 551 987 1293 372 2112 867 544 Spaces Moved 4919 | 40 415 630 1407 195 383 472 107 753 327 190 Core 24 | . . . . . . . . . . 24 Treads 4891 | 40 415 630 1407 195 383 472 107 753 327 162 Legs . | . . . . . . . . . . . Wheels . | . . . . . . . . . . . Hover 4 | . . . . . . . . . . 4 Flight . | . . . . . . . . . . . Fastest Speed 50 | 160 160 160 160 240 160 236 236 236 237 50 Average Speed 213 | 160 161 213 208 240 174 236 237 238 237 210 Slowest Speed 240 | 160 240 240 240 240 240 236 240 240 237 237 Overloaded Moves . | . . . . . . . . . . . Propulsion Burnouts . | . . . . . . . . . . . Robots Hopped . | . . . . . . . . . . . Cave-ins Triggered . | . . . . . . . . . . . Exploration Rate (%) 50 | 3 72 97 87 45 34 75 13 87 12 33 Regions Visited 10 Branch Regions 3 Pre-discovered Areas 4 | . 1 1 1 1 . . . . . . Known Exits Taken 3 | . . . . . 1 . 1 . 1 . Unknown Exits Taken 5 | 1 1 1 1 1 . . . . . . Scrap Searched 2 | . . 2 . . . . . . . . Spaces Dug 26 | . 3 . 5 . . 7 1 . . 10 Terrain Destroyed 369 | . 11 5 26 19 5 12 1 202 . 88 Melee 14 | . 3 . . . . . 1 . . 10 Projectile 21 | . . . 21 . . . . . . . AOE 329 | . 8 5 . 19 5 12 . 202 . 78 Terrain Rammed . | . . . . . . . . . . . Walls Destroyed . | . . . . . . . . . . . Machines Disabled . | . . . . . . . . . . . Actions | -11 -10 -10 -10 -9 -8 -8 -8 -8 -7 -7 --------- Run | Yrd Mat Min Exi Min Mat Gar Mat Gar Fac Gar Total 6177 | 58 508 684 1691 241 605 570 202 952 394 272 Wait 421 | . 23 24 88 17 130 15 68 13 42 1 Move 4911 | 40 414 629 1406 194 383 471 107 750 327 190 Hop . | . . . . . . . . . . . Pick Up 92 | 4 18 6 33 2 13 1 1 9 2 3 Fast Attach 22 | . 1 . 8 . 5 . 2 1 4 1 Attach 25 | 2 1 . 4 1 5 1 . 1 2 8 Detach 9 | . . . 4 . 1 . . . 1 3 Swap 107 | . 8 6 11 4 7 21 5 30 . 15 Drop 88 | 2 11 2 29 2 10 3 3 15 3 8 Fire 374 | 10 26 11 104 20 47 40 11 65 10 30 Melee 42 | . 4 5 . . . 8 5 7 . 13 Ram . | . . . . . . . . . . . Kick . | . . . . . . . . . . . Crush 11 | . 2 1 . 1 4 . . . 3 . Escape Stasis 10 | . . . . . . 10 . . . . Rewire 61 | . . . . . . . . 61 . . Trap 4 | . . . 4 . . . . . . . Miscellaneous . | . . . . . . . . . . . Route ------- -11/Scrapyard -10/Materials (discovered 3 exits: [*Mat] / [*Min x2]) -10/Mines (discovered 4 exits: [*Mat x2] / *Exi / [*Sub]) -10/Exiles -9/Mines (discovered 2 exits: *Mat x2) -8/Materials -8/Garrison (discovered 3 exits: *Mat x3) -8/Materials -8/Garrison (discovered 3 exits: *Fac x3) -7/Factory -7/Garrison History --------- Turn | Location | Event 17 | -11/Scrapyard | Discovered new exit (range 3) 103 | -11/Scrapyard | Entered Materials 311 | -10/Materials | Build established: Mutant 315 | -10/Materials | Discovered new exit (range 10) 534 | -10/Materials | Discovered new exit (range 3) 685 | -10/Materials | Discovered new exit (range 15) 921 | -10/Materials | Entered Mines 986 | -10/Mines | Discovered new exit (range 3) 1039 | -10/Mines | Deemed a non-threat by the Exiles lab entrance 1041 | -10/Mines | Discovered new exit (range 5) 1145 | -10/Mines | A weapon hastily lodged in a ceiling crevice suddenly fell to the ground 1155 | -10/Mines | Discovered new exit (range 13) 1277 | -10/Mines | Discovered new exit (range 13) 1280 | -10/Mines | Found a hidden stash of uninstalled traps 1868 | -10/Mines | Learned location of Mines (-9) 2082 | -10/Mines | Assisted by bots powering up and referring to "LRC-V3" 2355 | -10/Mines | Entered Exiles 2355 | -10/Exiles | Accompanied by 5 allies 2385 | -10/Exiles | Led the pair of lost Derelicts to a safe place 2431 | -10/Exiles | Met 8R-AWN 2469 | -10/Exiles | Met EX-HEX 2536 | -10/Exiles | Met EX-BIN 2575 | -10/Exiles | Aligned with FarCom system 2577 | -10/Exiles | Given EX-Vault access code 2635 | -10/Exiles | Opened EX-Vault 2692 | -10/Exiles | Warned to stay clear of 0b10 Research branches 2767 | -10/Exiles | Met EX-DEC 2779 | -10/Exiles | Learned location of Zion (-7) 3327 | -10/Exiles | Attacked by the Exiles 3427 | -10/Exiles | Found Prototype Ballistic Gun 3427 | -10/Exiles | Identified 8R-AWN's Boregun 3430 | -10/Exiles | Found 8R-AWN's Boregun 3799 | -10/Exiles | Destroyed EX-DEC 4017 | -10/Exiles | Destroyed EX-HEX 4107 | -10/Exiles | Destroyed EX-BIN 4526 | -10/Exiles | Destroyed 8R-AWN 4584 | -10/Exiles | Found Prototype Processor 5035 | -10/Exiles | Found Prototype Processor 5747 | -10/Exiles | Discovered new exit (range 10) 5768 | -10/Exiles | Entered Mines 5769 | -9/Mines | Assembled infested the area 5774 | -9/Mines | Assisted by a Guerilla fighting off Assembled 6130 | -9/Mines | Found a damaged Exp. Sensor Array with a note attached 6140 | -9/Mines | Found Prototype Device 6286 | -9/Mines | Discovered new exit (range 7) 6312 | -9/Mines | Discovered new exit (range 3) 6319 | -9/Mines | Entered Materials 6319 | -8/Materials | Evolved 4 slots: Propulsion x2, Utility x2 6321 | -8/Materials | Identified Exp. Sensor Array 6605 | -8/Materials | Identified Exp. Targeting Computer 6884 | -8/Materials | Build established: Scavenger-Mutant 6909 | -8/Materials | Repaired Broken Cmb. Antigrav System 7163 | -8/Materials | Garrison activated, responded to threat 7306 | -8/Materials | Identified exit to Garrison 7306 | -8/Materials | Entered Garrison 7347 | -8/Garrison | Triggered checkpoint 7483 | -8/Garrison | Triggered checkpoint 7556 | -8/Garrison | Triggered checkpoint 7587 | -8/Garrison | Triggered checkpoint 7588 | -8/Garrison | Destroyed 12 combat bots 7708 | -8/Garrison | Triggered checkpoint 7786 | -8/Garrison | Garrison Relay disabled 7945 | -8/Garrison | Discovered new exit (range 10) 8154 | -8/Garrison | Learned Materials security intel 8220 | -8/Garrison | Discovered new exit (range 26) 8220 | -8/Garrison | Discovered new exit (range 43) 8220 | -8/Garrison | Discovered new exit (range 23) 8599 | -8/Garrison | Entered Materials 8699 | -8/Materials | Garrison activated, responded to threat 8904 | -8/Materials | Repaired Cold Fusion Reactor 8971 | -8/Materials | Identified exit to Garrison 8971 | -8/Materials | Entered Garrison 9034 | -8/Garrison | Triggered checkpoint 9231 | -8/Garrison | Phase Generator disabled 9345 | -8/Garrison | Triggered checkpoint 9354 | -8/Garrison | Triggered checkpoint 9415 | -8/Garrison | Destroyed 10 combat bots 9422 | -8/Garrison | Lost 5 allies 9465 | -8/Garrison | Triggered checkpoint 9637 | -8/Garrison | Garrison Relay disabled 9677 | -8/Garrison | Garrison Relay disabled 9701 | -8/Garrison | Triggered checkpoint 9774 | -8/Garrison | Discovered new exit (range 12) 10031 | -8/Garrison | Discovered new exit (range 55) 10031 | -8/Garrison | Discovered new exit (range 99) 10031 | -8/Garrison | Discovered new exit (range 9) 10326 | -8/Garrison | Garrison Relay disabled 10347 | -8/Garrison | Triggered checkpoint 10365 | -8/Garrison | Triggered checkpoint 10646 | -8/Garrison | Attempted to access garrison exit controls, blocked by remote lockdown 10735 | -8/Garrison | Triggered checkpoint 10816 | -8/Garrison | Attempted to access garrison exit controls, blocked by remote lockdown 10883 | -8/Garrison | Triggered checkpoint 10997 | -8/Garrison | Garrison Relay disabled 11083 | -8/Garrison | Entered Factory 11083 | -7/Factory | Evolved 2 slots: Propulsion x1, Utility x1 11494 | -7/Factory | Repaired Adv. Treads 11883 | -7/Factory | First assault squad dispatched 11950 | -7/Factory | Identified exit to Garrison 11950 | -7/Factory | Entered Garrison 11995 | -7/Garrison | Rescued a captive Derelict 12044 | -7/Garrison | Triggered checkpoint 12218 | -7/Garrison | Garrison Relay disabled 12382 | -7/Garrison | Triggered checkpoint 12421 | -7/Garrison | Destroyed 11 combat bots 12437 | -7/Garrison | Assembled breached garrison interior 12474 | -7/Garrison | Core integrity fell below 50% 12482 | -7/Garrison | Destroyed 19 combat bots 12483 | -7/Garrison | Core integrity fell below 20% 12494 | -7/Garrison | Phase Generator disabled 12494 | -7/Garrison | Destroyed by Y-54 Guardian via exploding Phase Generator Last Messages --------------- 12463_ as-26971 destroyed. 12464_ Imp. EM Pulse Cannon destroyed. 12466_ ALERT: Garrison interior compromised. 12467_ Dropped Cold Fusion Reactor. 12470_ as-24106 destroyed. 12471_ Lgt. Neutrino Core destroyed. 12472_ Critical hit (Destroy). 12472_ Dropped Huge Storage Unit. 12473_ Dropped Lyr. Medium Armor Plating. 12473_ as-45556 destroyed. 12474_ as-32188 destroyed. 12476_ Gravity Neutralizer destroyed. 12478_ Dropped Lyr. Medium Armor Plating. 12479_ Hvy. Deuterium Engine destroyed. 12480_ Dropped Lrg. Storage Unit. 12480_ Dropped Flak Gun. 12480_ as-51988 destroyed. 12482_ Acquired Mak. Hammer. 12487_ RTCK4V<85 5UM M#NJCZMHE3IDBL|TH 12494_ Phase Generator explodes. Map ----- +----------------------------------------------------+ | ????????############ ########## # ###### | | ???????????????????# ##???????# #???? | | ?????????????????### ##??????## #####???? | | ?????????????????# #???????###??????## | | ?????????????????###T###????????????????# | | ???????????????????###??????????????????# | | ??????????????????????????????????????#?# | | ??????????????????????????????????????# # | | ??????????????????????????????????????# | | ??????????????????????????????????????### | | ????????????????????????????????????????# | | ????????????????????????????????????????## | | ????????????????????????????????????????# | | ????????????????????????????????????????# | | ????????????????????????????????????????# | | ????????????????????????????????????????# | | ???????????????????#######??????????????## | | ???????????????#####"""""#???????######### | | ???????????????# " "#???????# =!!![ | | ???????????????# "#???????# !!![] | | ??????????????## "##??????# ###### | | ??????????????# Y """???????# #????# | | ???????????????# #????????# #????? | | ???????????##### ######### #????? | | ???????????# aaaaa #????? | | ???????????# ### @ a ########## #????? | | ???????????????##### # ##????????# #????? | | ???????????????????# #???????????# #????? | | ???????????????????###???????????####????? | | ?????????????????????????????????????????? | | ?????????????????????????????????????????? | | ?????????????????????????????????????????? | | ?????????????????????????????????????????? | | ?????????????????????????????????????????? | | ?????????????????????????????????????????? | | ?????????????????????????????????????????? | | ?????????????????????????????????????????? | | ?????????????????????????????????????????? | | ?????????????????????????????????????????? | | ?????????????????????????????????????????? | | ?????????????????????????????????????????? | | ?????????????????????????????????????????? | | ?????????????????????????????????????????? | | ?????????????????????????????????????????? | | ?????????????????????????????????????????? | | ?????????????????????????????????????????? | | ?????????????????????????????????????????? | | ?????????????????????????????????????????? | | ?????????????????????????????????????????? | | ?????????????????????????????????????????? | +----------------------------------------------------+ Best States ------------- Heat Dissipation 60 Energy Generation 19 Energy Capacity 250 Matter Stores 300 Matter Capacity 300 Sight Range 16 Robot Scan Range 19 Terrain Scan Density 10 Armor Coverage 675 Evasion (%) 50 Targeting Accuracy 12 Recoil Reduction 5 Defensive Hacking 10 Item Schematics ----------------- Cmb. Antigrav System | -8/Materials | Scanalyzed Robot Schematics ------------------ None Fabricated ------------ Nothing Alien Tech Used ----------------- None Achievements -------------- None Challenges ------------ None Game ------ Seed HeartThunderTrap Manual? 0 Play Time 01:15:52 Cumulative 395.5 hours Start 2024.08.31 @ 23:52:17 End 2024.09.01 @ 01:09:33 Sessions 1 Manual Loads 0 Difficulty Rogue Special Mode None Game No. 145 Rogue 143 Adventurer 2 Explorer 0 Win Type - Total 20 Types 9/0/8/1/0/0/1/1/0 Lore% 76 Gallery% 85 Achievement% 76 Wizard Run 0 Options --------- Layout 0 ASCII 0 Keyboard 0 Movement Numpad Keybinds 0 Fullscreen 2 Font 24/Smallcaps Map View 76x50 Zoom Use 0% Tactical HUD 1 Map Filters NONE Filters NONE Steam 1 RUN: 22a388f9-f6f7-479b-a8df-b4dd8aaf3fa7